bitfinex-derivatives/quotes_ETHF0:USTF0_20241007
["timestamp","ask_amount","ask_price","bid_price","bid_amount"]
[1728309205372,0.40363,2477.9,2477.6,0.40366]
[1728309205562,0.4011,2478.2,2477.6,0.40366]
[1728309205868,0.40361,2478.0,2477.4,3.2078]
[1728309206073,0.4011,2478.2,2477.8,0.40363]
[1728309206074,1.41005,2478.2,2477.8,0.40363]
[1728309206263,1.41005,2478.2,2477.7,3.2078]
[1728309206462,0.40362,2478.0,2477.7,3.61144]
[1728309206664,0.40364,2477.8,2477.7,3.2078]
[1728309207269,0.40364,2477.8,2477.3,3.6101]
[1728309207575,1.00905,2478.0,2477.5,0.40368]
[1728309207867,0.40366,2477.7,2477.5,0.40368]
[1728309208075,1.00901,2478.1,2477.3,3.6101]
[1728309208363,1.00901,2478.1,2477.6,0.40367]
[1728309208364,0.40365,2477.8,2477.6,0.40367]
[1728309208667,0.40365,2477.8,2477.5,0.40368]
[1728309208867,0.40366,2477.7,2477.5,0.40368]
[1728309209268,3.6089,2478.2,2477.3,4.6194]
[1728309209462,0.40362,2478.0,2477.8,0.40363]
[1728309209868,0.40359,2478.1,2477.7,0.40364]
[1728309210068,4.21675,2478.2,2477.7,0.40366]
[1728309210069,0.40362,2478.0,2477.7,0.40366]
[1728309210266,0.40363,2477.9,2477.7,0.40366]
[1728309210474,0.40361,2478.0,2477.8,0.40363]
[1728309210777,4.21676,2478.2,2477.6,3.2078]
[1728309211073,0.40361,2478.0,2477.7,0.40364]
[1728309211271,0.40361,2478.0,2477.8,0.40363]
[1728309211472,0.40363,2477.9,2477.7,0.40365]
[1728309211976,3.2078,2478.2,2477.6,3.2078]
[1728309212163,0.40364,2477.9,2477.7,0.40365]
[1728309212474,3.6265,2478.2,2476.6,3.2078]
[1728309212475,3.88,2477.8,2476.6,3.2078]
[1728309212664,3.88,2477.3,2476.6,4.21739]
[1728309212871,0.40379,2476.9,2476.6,3.2078]
[1728309213073,0.40377,2477.0,2476.9,0.40379]
[1728309213373,3.88,2477.3,2476.6,3.2078]
[1728309213572,3.88,2477.3,2476.7,0.40381]
[1728309213573,0.4038,2476.9,2476.7,0.40381]
[1728309213873,1.0094,2477.1,2476.6,3.61162]
[1728309213874,0.4038,2476.8,2476.6,3.61162]
[1728309214180,0.40382,2476.7,2476.6,3.2078]
[1728309214376,0.40388,2476.3,2476.2,3.2078]
[1728309214572,0.40391,2476.2,2476.0,0.4027]
[1728309215075,3.88,2476.4,2475.9,3.2078]
[1728309215076,1.00974,2476.3,2475.9,3.2078]
[1728309215466,3.88,2476.4,2475.9,3.2078]
[1728309215663,46.10832,2476.6,2475.9,3.2078]
[1728309215873,0.40388,2476.4,2476.1,0.40391]
[1728309216075,0.40387,2476.5,2476.2,3.61169]
[1728309216266,41.2187,2476.6,2476.2,3.61169]
[1728309216267,0.40387,2476.4,2476.2,3.61169]
[1728309216467,41.2187,2476.6,2476.2,3.2078]
[1728309216674,0.40387,2476.4,2476.2,3.6117]
[1728309216866,0.4187,2476.6,2476.2,3.2078]
[1728309217072,0.40388,2476.3,2476.2,3.2078]
[1728309217372,0.40394,2476.0,2475.9,3.2078]
[1728309217582,1.00989,2475.9,2475.6,3.2078]
[1728309217768,0.40397,2475.8,2475.6,3.61179]
[1728309217968,0.40398,2475.7,2475.6,3.2078]
[1728309218170,1.00988,2475.9,2475.3,3.2078]
[1728309218370,3.88,2475.5,2475.3,3.2078]
[1728309218567,0.40403,2475.4,2475.3,3.2078]
[1728309218876,4.44403,2475.4,2475.3,3.2078]
[1728309219776,0.40403,2475.5,2475.3,3.2078]
[1728309220074,0.3983,2475.9,2475.3,3.2078]
[1728309220275,0.3983,2475.9,2475.6,0.40399]
[1728309220276,0.40396,2475.9,2475.6,0.40399]
[1728309220576,0.4181,2476.1,2475.3,3.2078]
[1728309220773,0.4181,2476.1,2475.6,0.40399]
[1728309220774,0.40396,2475.9,2475.6,0.40399]
[1728309220971,0.40395,2476.0,2475.7,0.40398]
[1728309221168,0.4181,2476.1,2475.7,0.40398]
[1728309221373,3.2078,2476.3,2475.6,3.2078]
[1728309221575,3.2078,2476.3,2475.8,0.40396]
[1728309221576,0.40393,2476.1,2475.8,0.40396]
[1728309221879,0.40393,2476.1,2475.6,3.2078]
[1728309221880,0.40394,2476.0,2475.6,3.61178]
[1728309222072,0.40394,2476.0,2475.6,3.2078]
[1728309222273,0.40394,2476.0,2475.7,0.40398]
[1728309222476,0.40395,2476.0,2475.7,0.40397]
[1728309222676,0.40397,2475.8,2475.6,3.2078]
[1728309222876,0.40396,2475.9,2475.6,3.6118]
[1728309223274,0.40398,2475.8,2475.6,3.2078]
[1728309223678,0.40398,2475.7,2475.6,3.2078]
[1728309223876,7.5778,2476.3,2475.6,3.2078]
[1728309224179,0.40398,2475.7,2475.6,3.2078]
[1728309224379,1.00984,2476.0,2475.6,3.2078]
[1728309224578,0.40398,2475.7,2475.6,3.2078]
[1728309224786,0.40402,2475.5,2475.3,3.2078]
[1728309225079,0.40402,2475.5,2475.0,1.87314788]
[1728309225080,5.38002,2475.6,2475.0,3.2078]
[1728309225381,0.40408,2475.1,2475.0,3.2078]
[1728309225877,4.44408,2475.1,2475.0,3.2078]
[1728309226072,0.4041,2475.0,2474.7,0.40414]
[1728309226274,5.38019,2475.2,2474.4,1.02774788]
[1728309226275,41.2002,2475.3,2474.9,3.61191]
[1728309226474,0.40408,2475.1,2474.9,3.61191]
[1728309226681,41.2002,2475.3,2474.6,3.2078]
[1728309226882,1.01017,2475.2,2474.6,3.2078]
[1728309227082,0.40413,2474.9,2474.6,3.61196]
[1728309227280,4.37,2474.9,2474.4,1.43193788]
[1728309227474,4.37,2474.9,2474.3,1.42484788]
[1728309227677,0.40417,2474.6,2474.4,0.40419]
[1728309227881,4.37,2474.9,2474.5,3.2078]
[1728309228086,0.40416,2474.6,2474.3,0.8013]
[1728309228582,0.40417,2474.6,2474.3,1.82904788]
[1728309228783,0.40418,2474.5,2474.3,1.82904788]
[1728309228977,0.40413,2474.8,2474.3,1.42484788]
[1728309229178,0.40411,2475.0,2474.5,3.2078]
[1728309229379,1.01017,2475.2,2474.5,3.2078]
[1728309229576,1.01017,2475.2,2474.8,0.40412]
[1728309229779,0.4041,2475.0,2474.8,0.40412]
[1728309229983,4.7702,2475.3,2474.8,3.2078]
[1728309230283,0.80426,2475.3,2474.8,3.2078]
[1728309230493,0.3964,2475.4,2475.3,0.40405]
[1728309230677,0.40399,2475.7,2475.4,0.40402]
[1728309230873,3.2078,2475.8,2475.1,3.6043]
[1728309231086,0.40399,2475.7,2475.4,0.40401]
[1728309231284,3.2078,2475.8,2475.4,3.2078]
[1728309231473,3.5921,2475.8,2475.4,3.2078]
[1728309231679,0.404,2475.6,2475.4,3.2078]
[1728309231883,4.60203,2475.8,2475.4,3.2078]
[1728309232475,0.40399,2475.7,2475.4,3.61182]
[1728309232784,0.40401,2475.6,2475.4,3.2078]
[1728309232987,0.404,2475.6,2475.4,3.61182]
[1728309233183,0.3843,2475.8,2475.4,3.2078]
[1728309233380,1.00996,2475.7,2475.1,3.6043]
[1728309233688,4.7543,2475.8,2475.4,0.40403]
[1728309233886,0.40399,2475.7,2475.5,0.40401]
[1728309234087,4.7543,2475.8,2475.4,3.2078]
[1728309234385,0.404,2475.6,2475.4,3.61182]
[1728309234886,0.404,2475.7,2475.4,3.61182]
[1728309235085,0.404,2475.6,2475.4,3.61182]
[1728309235287,0.3843,2475.8,2475.4,3.2078]
[1728309235485,0.4103,2476.0,2475.4,3.2078]
[1728309235785,0.404,2475.6,2475.4,3.61183]
[1728309235987,0.40398,2475.7,2475.5,0.404]
[1728309236483,1.84336,2476.0,2475.4,3.2078]
[1728309236484,0.404,2475.6,2475.4,3.61182]
[1728309236687,0.40398,2475.8,2475.6,0.404]
[1728309236884,4.37,2476.5,2475.7,3.2078]
[1728309237084,1.84057,2476.7,2476.1,3.2078]
[1728309237288,0.40388,2476.3,2476.1,3.61171]
[1728309237684,1.00965,2476.5,2476.2,0.4039]
[1728309237685,0.40387,2476.5,2476.2,0.4039]
[1728309237892,1.84057,2476.7,2476.2,0.4039]
[1728309238091,0.831,2476.7,2476.1,3.2078]
[1728309238294,1.00964,2476.5,2476.1,3.2078]
[1728309238486,0.40389,2476.3,2476.1,3.2078]
[1728309238895,0.831,2476.7,2476.1,3.2078]
[1728309239196,0.40389,2476.3,2476.1,3.2078]
[1728309239592,0.40388,2476.4,2476.1,3.2078]
[1728309239792,0.40388,2476.4,2476.2,0.4039]
[1728309239994,0.4133,2476.7,2476.4,0.40386]
[1728309240187,0.4133,2476.7,2476.4,3.2078]
[1728309241192,0.40385,2476.5,2476.4,3.2078]
[1728309241988,4.28384,2476.6,2476.4,3.2078]
[1728309242188,3.88,2476.6,2476.4,3.2078]
[1728309242390,0.40385,2476.5,2476.4,3.2078]
[1728309243394,3.88,2476.6,2476.5,0.40385]
[1728309243601,0.40382,2476.7,2476.4,3.61166]
[1728309243796,0.40385,2476.5,2476.4,3.2078]
[1728309244300,0.40383,2476.7,2476.4,3.61166]
[1728309244698,10.104,2476.8,2476.4,3.2078]
[1728309244699,0.40385,2476.5,2476.4,3.2078]
[1728309246492,4.44225,2476.5,2476.4,3.2078]
[1728309246888,0.40385,2476.5,2476.4,3.2078]
[1728309247294,40.8,2477.0,2476.4,3.2078]
[1728309247594,0.40384,2476.6,2476.4,3.61167]
[1728309247795,5.02693,2477.1,2476.4,3.61166]
[1728309247999,0.40384,2476.6,2476.4,3.61166]
[1728309248398,44.8175,2477.1,2476.4,3.2078]
[1728309248607,0.40382,2476.7,2476.5,0.40384]
[1728309248793,1.00947,2476.9,2476.4,3.2078]
[1728309249094,4.0175,2477.1,2476.4,3.2078]
[1728309249298,0.4038,2476.9,2476.6,0.40383]
[1728309249497,3.2078,2477.3,2476.7,3.2078]
[1728309249709,0.40375,2477.2,2476.7,3.2078]
[1728309250000,3.2078,2477.3,2476.8,0.4091]
[1728309250392,3.2078,2477.3,2476.9,0.4221]
[1728309250597,0.40376,2477.1,2476.9,0.82588]
[1728309251292,4.21713,2477.3,2476.9,0.82588]
[1728309251293,3.2078,2477.3,2476.9,0.4221]
[1728309251596,0.40378,2477.0,2476.8,0.4038]
[1728309251799,1.00939,2477.1,2476.7,3.61161]
[1728309251996,0.40379,2476.9,2476.8,0.4038]
[1728309252300,0.40377,2477.1,2476.9,0.40378]
[1728309252504,1.00935,2477.2,2476.8,0.40379]
[1728309252692,0.40379,2476.9,2476.8,0.40379]
[1728309253092,0.40378,2477.0,2476.8,0.4038]
[1728309253297,0.40379,2476.9,2476.8,0.4038]
[1728309253596,1.00939,2477.1,2476.8,0.4038]
[1728309253899,0.40379,2476.9,2476.8,0.4038]
[1728309254101,0.4038,2476.8,2476.7,3.2078]
[1728309254295,0.4038,2476.8,2476.0,3.2078]
[1728309254296,6.621,2476.8,2476.0,3.2078]
[1728309254494,0.40392,2476.1,2476.0,3.2078]
[1728309254697,3.88,2476.3,2476.0,3.2078]
[1728309254898,3.88,2476.3,2476.2,0.4039]
[1728309255091,3.88,2476.3,2476.0,3.2078]
[1728309255299,3.88,2476.1,2475.6,3.2078]
[1728309255704,0.40398,2475.7,2475.6,3.2078]
[1728309255912,0.40398,2475.8,2475.6,3.6118]
[1728309256204,3.88,2476.1,2475.6,3.2078]
[1728309256400,0.40398,2475.7,2475.6,3.2078]
[1728309256596,1.00984,2476.0,2475.1,0.40407]
[1728309256597,1.01001,2475.6,2475.1,0.40407]
[1728309256797,0.40406,2475.3,2475.0,4.00419]
[1728309257295,48.43095,2475.8,2475.0,4.00419]
[1728309257296,0.40408,2475.2,2475.0,4.00419]
[1728309257597,0.40408,2475.1,2475.0,3.6001]
[1728309257800,0.40408,2475.1,2475.0,3.61189]
[1728309258001,0.40408,2475.1,2475.0,3.2078]
[1728309258493,0.40408,2475.1,2475.0,3.6119]
[1728309258703,1.42141,2475.4,2475.0,3.6119]
[1728309258704,0.4113,2475.4,2475.0,3.2078]
[1728309259001,0.40408,2475.1,2475.0,3.2078]
[1728309259708,0.40408,2475.1,2474.7,3.2078]
[1728309259709,0.40413,2474.8,2474.7,3.2078]
[1728309259898,3.88,2474.9,2474.5,0.4162]
[1728309260102,0.40416,2474.6,2474.5,0.82038]
[1728309260297,3.88,2474.9,2474.4,3.2078]
[1728309260604,3.6298,2475.3,2474.9,0.40411]
[1728309260605,1.41418,2475.3,2474.9,0.40411]
[1728309260800,0.40409,2475.1,2474.9,0.40411]
[1728309261303,2.654,2475.5,2475.0,3.2078]
[1728309261508,0.40408,2475.1,2475.0,3.2078]
[1728309262502,3.88,2475.6,2475.0,3.2078]
[1728309262714,0.40405,2475.3,2475.1,0.40407]
[1728309263194,0.40405,2475.3,2475.0,3.2078]
[1728309263195,1.01008,2475.4,2475.0,3.2078]
[1728309263400,0.40413,2474.8,2474.7,3.2078]
[1728309264303,4.89026,2475.0,2474.7,3.2078]
[1728309264502,4.2841,2475.0,2474.8,0.40412]
[1728309264723,0.4113,2475.1,2474.7,3.2078]
[1728309265014,0.40415,2474.7,2474.6,3.2078]
[1728309265202,0.4041,2475.0,2474.7,0.40413]
[1728309265403,0.40414,2474.8,2474.6,3.61196]
[1728309265707,0.40415,2474.7,2474.6,3.2078]
[1728309265904,0.40412,2474.9,2474.8,0.40413]
[1728309266103,0.40409,2475.1,2474.9,0.4041]
[1728309266411,0.40405,2475.3,2474.9,3.2078]
[1728309266605,0.40401,2475.5,2475.2,3.2078]
[1728309266906,0.4041,2475.7,2475.2,3.2078]
[1728309267118,4.2841,2475.7,2474.9,3.2078]
[1728309267300,0.4041,2475.0,2474.9,3.2078]
[1728309270502,0.4041,2475.0,2474.5,3.61197]
[1728309270503,0.40417,2474.6,2474.5,3.61197]
[1728309270710,0.40417,2474.6,2474.5,3.2078]
[1728309270901,0.40417,2474.6,2474.5,3.61198]
[1728309271302,0.40417,2474.6,2474.5,3.2078]
[1728309271498,0.40417,2474.6,2474.5,3.61198]
[1728309272009,3.88,2475.4,2474.5,3.2078]
[1728309272200,3.88,2475.4,2474.9,0.40411]
[1728309272201,0.40411,2475.0,2474.9,0.40411]
[1728309272401,0.40409,2475.1,2475.0,0.40408]
[1728309273101,1.01013,2475.3,2474.8,3.2078]
[1728309273303,1.01013,2475.3,2475.1,3.61187]
[1728309273304,0.40407,2475.2,2475.1,3.61187]
[1728309273604,0.4022,2475.6,2475.1,3.2078]
[1728309273812,0.40404,2475.4,2475.3,0.40403]
[1728309274412,0.40406,2475.3,2475.2,0.40406]
[1728309274912,1.01002,2475.6,2475.2,4.04]
[1728309275101,0.40401,2475.5,2475.4,3.2078]
[1728309275300,4.88998,2475.7,2475.4,3.2078]
[1728309275504,0.40399,2475.7,2475.6,0.40398]
[1728309275702,0.40397,2475.8,2475.7,0.40397]
[1728309275902,0.40397,2475.8,2475.7,3.61177]
[1728309276198,1.00983,2476.1,2475.7,3.2078]
[1728309276199,1.00981,2476.1,2475.7,3.2078]
[1728309276400,0.40397,2475.8,2475.7,3.61177]
[1728309276603,0.40397,2475.8,2475.7,3.2078]
[1728309276801,3.2078,2476.0,2475.3,3.2078]
[1728309277002,0.40403,2475.4,2475.3,3.2078]
[1728309277708,0.8373,2475.7,2475.0,3.2078]
[1728309277909,0.40408,2475.1,2475.0,3.61189]
[1728309278409,0.40408,2475.1,2475.0,7.65189]
[1728309278707,1.01007,2475.5,2475.0,7.2478]
[1728309278908,0.40403,2475.5,2475.4,0.40402]
[1728309279104,0.40398,2475.8,2475.7,0.40397]
[1728309279412,0.40396,2475.9,2475.8,0.40395]
[1728309279599,0.40398,2475.7,2475.6,3.2078]
[1728309279808,0.40398,2475.7,2475.6,3.6118]
[1728309279999,0.40398,2475.7,2475.6,3.2078]
[1728309280204,0.40398,2475.7,2475.6,3.6118]
[1728309281612,0.40394,2476.0,2475.9,0.40395]
[1728309281798,0.40394,2476.0,2475.9,3.61175]
[1728309282003,0.4221,2476.4,2475.9,3.2078]
[1728309282415,1.43452,2476.6,2475.9,3.2078]
[1728309282608,0.4039,2476.3,2476.2,0.40389]
[1728309282909,0.40392,2476.1,2476.0,0.40391]
[1728309283212,1.00973,2476.3,2475.9,3.2078]
[1728309283213,0.40393,2476.0,2475.9,3.2078]
[1728309283404,1.00976,2476.2,2475.5,3.6336]
[1728309283608,0.404,2475.6,2475.5,4.03761]
[1728309283812,0.40399,2475.7,2475.6,0.40398]
[1728309284410,1.0098,2476.1,2475.5,3.6336]
[1728309284604,0.40397,2475.9,2475.8,0.40396]
[1728309284807,1.00985,2476.0,2475.5,3.6336]
[1728309285016,0.40399,2475.8,2475.7,0.40397]
[1728309285921,0.40394,2476.0,2475.9,0.40393]
[1728309286209,1.00968,2476.4,2475.8,3.2078]
[1728309286408,0.4039,2476.2,2476.1,3.2078]
[1728309286616,0.4039,2476.2,2476.1,3.61172]
[1728309287408,0.4039,2476.2,2476.1,3.2078]
[1728309288310,0.4039,2476.2,2476.1,3.61172]
[1728309288815,1.00938,2477.2,2476.1,17.1262]
[1728309289013,0.40381,2476.8,2476.1,7.0878]
[1728309289213,0.8218,2477.1,2476.5,3.2078]
[1728309289408,1.00943,2477.0,2476.5,3.61165]
[1728309289615,0.40382,2476.8,2476.5,3.61165]
[1728309289916,0.8218,2477.1,2476.6,0.40383]
[1728309290118,0.40379,2476.9,2476.5,3.2078]
[1728309290312,1.22556,2477.1,2476.8,0.4038]
[1728309290817,50.905,2477.5,2476.8,0.4038]
[1728309290818,10.105,2477.5,2476.8,3.2078]
[1728309291019,0.40371,2477.4,2477.1,3.2078]
[1728309291209,0.40373,2477.3,2477.1,3.2078]
[1728309291517,0.40374,2477.2,2477.1,3.2078]
[1728309291907,0.3881,2477.4,2477.1,3.2078]
[1728309292508,3.14868,2477.6,2477.4,0.4037]
[1728309292810,3.14868,2477.6,2477.5,0.40369]
[1728309292811,2.745,2477.6,2477.5,0.40369]
[1728309293117,2.745,2477.6,2477.4,3.2078]
[1728309293317,2.745,2477.6,2477.2,0.40373]
[1728309293512,0.40372,2477.4,2477.1,3.61154]
[1728309293706,3.7542,2477.6,2477.1,3.61155]
[1728309293919,0.40373,2477.3,2477.1,3.61155]
[1728309294109,0.40374,2477.2,2477.1,3.2078]
[1728309294919,1.00928,2477.4,2477.1,3.2078]
[1728309295119,0.40371,2477.4,2477.2,0.40372]
[1728309295324,7.63422,2477.6,2477.2,0.40372]
[1728309295508,6.625,2477.6,2477.1,3.2078]
[1728309295716,0.40372,2477.3,2477.2,0.40373]
[1728309295915,1.00924,2477.5,2477.2,0.40373]
[1728309296117,6.625,2477.6,2477.1,3.2078]
[1728309296415,0.40374,2477.2,2477.1,3.61154]
[1728309296610,0.40374,2477.2,2477.1,3.2078]
[1728309297317,0.40377,2477.1,2476.8,3.2078]
[1728309297509,0.40377,2477.1,2477.0,0.40376]
[1728309297716,0.40377,2477.0,2476.9,0.40378]
[1728309298213,0.40377,2477.0,2476.9,0.40379]
[1728309299422,0.40379,2476.9,2476.8,3.2078]
[1728309299922,0.40382,2476.7,2476.6,0.40383]
[1728309300123,0.4038,2476.9,2476.5,3.2078]
[1728309300321,1.23263,2477.3,2477.1,0.40374]
[1728309300516,0.40374,2477.2,2477.1,0.40374]
[1728309300713,0.8289,2477.3,2477.1,0.40374]
[1728309300922,0.40374,2477.2,2477.0,0.40376]
[1728309301225,0.40374,2477.2,2476.8,3.2078]
[1728309301426,0.8289,2477.3,2476.8,3.2078]
[1728309301723,0.8289,2477.3,2477.1,3.2078]
[1728309301924,1.23262,2477.3,2477.2,0.40374]
[1728309302129,0.4037,2477.5,2477.3,0.40371]
[1728309302315,3.2078,2477.6,2477.1,3.2078]
[1728309302520,0.40372,2477.4,2477.2,0.40373]
[1728309302715,3.61148,2477.6,2477.4,0.40369]
[1728309303019,1.19895,2477.8,2477.6,0.40366]
[1728309303419,0.7953,2477.8,2477.6,0.40366]
[1728309303616,4.8313,2477.8,2477.4,3.2078]
[1728309303815,0.81355,2477.8,2477.4,3.2078]
[1728309304027,1.00901,2478.1,2477.8,0.40363]
[1728309304223,0.4082,2478.2,2477.7,3.2078]
[1728309304422,0.4211,2478.3,2478.0,3.2078]
[1728309304629,0.40359,2478.1,2478.0,3.2078]
[1728309305718,11.51899,2478.6,2478.0,3.2078]
[1728309305918,0.40354,2478.4,2478.2,0.40356]
[1728309306523,0.40356,2478.3,2478.0,3.2078]
[1728309306719,0.40356,2478.3,2478.1,0.40357]
[1728309306919,0.40356,2478.3,2478.0,3.2078]
[1728309306920,10.5102,2478.6,2478.0,3.2078]
[1728309307127,10.5102,2478.6,2478.1,0.40358]
[1728309307128,0.40358,2478.2,2478.1,0.40358]
[1728309307331,0.40357,2478.2,2478.1,0.40358]
[1728309307530,0.40357,2478.3,2478.2,0.40356]
[1728309307834,3.88,2478.6,2478.0,3.2078]
[1728309308137,3.88,2478.6,2477.7,3.61145]
[1728309308138,0.40364,2477.8,2477.7,3.61145]
[1728309308437,1.00904,2478.0,2477.5,0.82708]
[1728309308634,0.40369,2477.5,2477.4,3.2078]
[1728309309749,4.0368,2477.5,2477.0,3.6195]
[1728309309926,1.00931,2477.3,2477.0,3.6195]
[1728309310233,3.073,2478.1,2477.0,3.6195]
[1728309310425,3.2078,2478.2,2477.9,0.40362]
[1728309310628,0.40358,2478.2,2477.9,0.40362]
[1728309310926,1.19668918,2478.5,2477.8,3.2078]
[1728309311121,1.19668918,2478.5,2477.9,0.40361]
[1728309311122,0.40358,2478.2,2477.9,0.40361]
[1728309311428,0.412,2478.5,2477.8,3.2078]
[1728309311625,0.40358,2478.2,2477.9,0.40361]
[1728309311933,0.40358,2478.2,2478.0,0.4036]
[1728309312331,0.40358,2478.2,2477.8,3.2078]
[1728309312332,0.40357,2478.3,2478.1,0.40358]
[1728309312534,0.40358,2478.2,2478.0,0.4036]
[1728309312729,2.20552918,2478.5,2477.8,3.2078]
[1728309312929,0.40357,2478.3,2478.1,0.40359]
[1728309313832,1.42084,2478.5,2477.8,3.2078]
[1728309314034,0.40358,2478.2,2478.0,0.40359]
[1728309314627,0.40358,2478.2,2478.1,0.40359]
[1728309314835,0.40359,2478.2,2478.1,0.40359]
[1728309315232,0.40358,2478.2,2478.1,0.40358]
[1728309315438,4.292,2478.5,2478.1,3.2078]
[1728309315639,0.8022,2478.6,2477.8,1.0091]
[1728309315640,0.4164,2478.6,2478.2,3.2078]
[1728309315835,0.78468918,2478.7,2478.2,3.2078]
[1728309315836,1.18819918,2478.7,2478.2,4.21673]
[1728309316136,0.78468918,2478.7,2478.6,0.40351]
[1728309316636,0.78468918,2478.7,2478.5,3.61131]
[1728309316637,0.40351,2478.6,2478.5,3.61131]
[1728309317031,0.40351,2478.6,2478.5,3.2078]
[1728309317239,0.78468918,2478.7,2478.6,0.40351]
[1728309317445,0.78468918,2478.7,2478.6,4.43791]
[1728309317637,0.78468918,2478.7,2478.6,4.85801]
[1728309318641,0.78468918,2478.7,2478.6,0.82361]
[1728309319036,0.78468918,2478.7,2478.6,10.85801]
[1728309319739,0.78468918,2478.7,2478.6,14.73801]
[1728309319937,0.04638918,2478.7,2478.6,14.73801]
[1728309320141,3.88,2480.3,2478.6,34.19783063]
[1728309320341,0.40334,2479.7,2479.6,3.2078]
[1728309320943,0.40333,2479.7,2479.6,3.61113]
[1728309321241,0.40333,2479.7,2479.6,3.2078]
[1728309321435,0.40333,2479.7,2479.3,0.3917]
[1728309321436,0.40338,2479.4,2479.3,3.2078]
[1728309321636,0.40338,2479.4,2479.3,0.40338]
[1728309321840,0.40338,2479.4,2479.3,3.2078]
[1728309322035,0.40338,2479.4,2479.3,3.6112]
[1728309322233,0.40338,2479.4,2479.3,3.2078]
[1728309322944,0.40344,2479.1,2479.0,3.61124]
[1728309323337,0.40344,2479.1,2479.0,3.2078]
[1728309324138,0.40344,2479.1,2479.0,3.61124]
[1728309324344,0.40344,2479.1,2479.0,3.2078]
[1728309326444,0.40349,2478.7,2478.6,3.6113]
[1728309326634,0.40349,2478.7,2478.6,3.2078]
[1728309326942,1.43242,2479.0,2478.5,0.40351]
[1728309326943,0.40351,2478.6,2478.5,0.40351]
[1728309327839,1.00866,2478.9,2478.4,0.4049]
[1728309327840,0.40353,2478.5,2478.4,0.4049]
[1728309328040,0.40353,2478.5,2478.3,3.2078]
[1728309328248,0.40354,2478.4,2478.3,3.2078]
[1728309328540,1.00876,2478.7,2478.2,0.40357]
[1728309328541,0.40358,2478.3,2478.2,0.40357]
[1728309328942,0.40358,2478.2,2478.1,0.40357]
[1728309329139,1.00885,2478.5,2478.0,7.3978]
[1728309329343,0.40359,2478.2,2478.1,0.40358]
[1728309329543,0.40359,2478.1,2478.0,3.2078]
[1728309330141,1.40492,2478.3,2477.7,3.2078]
[1728309330446,0.40363,2477.9,2477.8,0.40363]
[1728309330653,1.40492,2478.3,2477.7,3.2078]
[1728309330952,1.00897,2478.2,2477.7,3.2078]
[1728309331145,0.40364,2477.8,2477.7,3.61145]
[1728309331349,0.40362,2478.0,2477.9,0.40361]
[1728309331549,0.4036,2478.1,2478.0,0.40359]
[1728309331750,0.396,2478.3,2478.0,3.2078]
[1728309332149,0.40364,2477.9,2477.8,0.40364]
[1728309332661,0.40364,2477.8,2477.7,3.2078]
[1728309332843,0.40364,2477.8,2477.7,3.61146]
[1728309333457,1.00894,2478.2,2477.7,3.2078]
[1728309333653,0.4036,2478.1,2478.0,0.40359]
[1728309333853,0.40359,2478.2,2478.1,0.40358]
[1728309334152,0.79956,2478.3,2478.2,0.40357]
[1728309334452,0.79956,2478.3,2478.0,3.2078]
[1728309334453,0.40358,2478.2,2478.1,0.40358]
[1728309335043,0.4221,2478.4,2478.2,0.40357]
[1728309335243,0.4221,2478.4,2478.0,3.2078]
[1728309335244,0.40358,2478.2,2478.1,0.40358]
[1728309336352,0.40357,2478.2,2478.1,4.43878]
[1728309336954,0.40357,2478.2,2478.1,0.40358]
[1728309337147,0.40357,2478.3,2478.2,0.40356]
[1728309338056,0.4221,2478.4,2478.0,3.2078]
[1728309338353,0.40359,2478.2,2478.1,0.40358]
[1728309338650,0.40359,2478.2,2478.1,0.40359]
[1728309339048,0.40359,2478.2,2478.1,0.40358]
[1728309339247,1.43097,2478.4,2478.0,3.2078]
[1728309339448,0.40359,2478.1,2478.0,3.6114]
[1728309340054,0.40359,2478.1,2478.0,3.2078]
[1728309340450,1.00892,2478.3,2477.7,3.2078]
[1728309340650,0.40363,2477.9,2477.8,0.40362]
[1728309341155,0.4,2478.0,2477.7,3.61144]
[1728309341457,1.40905,2478.0,2477.8,0.40363]
[1728309341651,0.40363,2477.9,2477.7,3.61144]
[1728309341846,0.40364,2477.8,2477.7,3.61144]
[1728309342064,0.40364,2477.8,2477.7,3.2078]
[1728309342559,0.4,2478.0,2477.3,4.19]
[1728309342756,0.40368,2477.6,2477.5,0.40368]
[1728309342946,0.3885,2477.7,2477.6,0.40367]
[1728309344749,0.79216,2477.7,2477.6,0.40367]
[1728309345654,0.3885,2477.7,2477.6,0.40367]
[1728309347454,0.40364,2477.8,2477.6,0.40367]
[1728309347455,0.40363,2477.9,2477.6,0.40367]
[1728309347660,0.40363,2477.9,2477.8,3.61144]
[1728309347955,0.80362,2478.0,2477.9,0.40362]
[1728309348760,0.40362,2477.9,2477.8,3.61142]
[1728309349150,0.40362,2477.9,2477.8,3.2078]
[1728309349359,0.40366,2477.8,2477.5,3.2078]
[1728309349659,0.40367,2477.7,2477.6,0.40366]
[1728309350053,4.28366,2477.8,2477.2,4.21712]
[1728309350254,0.4022,2477.6,2477.5,3.61149]
[1728309350456,0.80587,2477.6,2477.5,3.61149]
[1728309350647,5.31021,2477.8,2477.5,3.61149]
[1728309350648,3.88,2477.8,2477.5,3.61149]
[1728309350956,0.40364,2477.8,2477.7,0.40364]